[Event "Early-Titled-Tuesday-Blitz-February-27-2024"]
[Site "Chess.com"]
[Date "2024.02.27"]
[Round "5"]
[White "pr1105"]
[Black "jraosam"]
[Result "1-0"]
[WhiteElo "2334"]
[BlackElo "1938"]
[TimeControl "180+1"]
[EndTime "8:55:23 PST"]
[Termination "pr1105 won by checkmate"]

1. e4 {[%clk 0:02:58.5]} 1... c5 {[%clk 0:02:54.7]} 2. Nf3 {[%clk 0:02:58.3]}
2... e6 {[%clk 0:02:52.5]} 3. d4 {[%clk 0:02:58.5]} 3... cxd4 {[%clk 0:02:41.6]}
4. Nxd4 {[%clk 0:02:59.4]} 4... a6 {[%clk 0:02:39.9]} 5. c4 {[%clk 0:02:58]}
5... Qc7 {[%clk 0:02:38.7]} 6. Nc3 {[%clk 0:02:52.2]} 6... Nc6 {[%clk
0:02:38.2]} 7. a3 {[%clk 0:02:45.1]} 7... Nf6 {[%clk 0:02:36.1]} 8. Be3 {[%clk
0:02:41.8]} 8... d6 {[%clk 0:02:34]} 9. Be2 {[%clk 0:02:41.1]} 9... Be7 {[%clk
0:02:33]} 10. Rc1 {[%clk 0:02:40.8]} 10... O-O {[%clk 0:02:32]} 11. f3 {[%clk
0:02:39.7]} 11... Bd7 {[%clk 0:02:31.2]} 12. Kd2 {[%clk 0:02:36.4]} 12... Ne5
{[%clk 0:02:25.6]} 13. Kc2 {[%clk 0:02:30.9]} 13... Nxc4 {[%clk 0:02:23.4]} 14.
Bxc4 {[%clk 0:02:31.8]} 14... Qxc4 {[%clk 0:02:24.2]} 15. Kb1 {[%clk 0:02:32.7]}
15... Rac8 {[%clk 0:02:18.1]} 16. Nd5 {[%clk 0:02:27.2]} 16... Nxd5 {[%clk
0:02:15.4]} 17. Rxc4 {[%clk 0:01:30.1]} 17... Nxe3 {[%clk 0:02:13.5]} 18. Rxc8
{[%clk 0:01:30.3]} 18... Nxd1 {[%clk 0:02:12.6]} 19. Rxf8+ {[%clk 0:01:30.5]}
19... Kxf8 {[%clk 0:02:09.6]} 20. Rxd1 {[%clk 0:01:31.2]} 20... Ke8 {[%clk
0:02:06.1]} 21. Rc1 {[%clk 0:01:26.8]} 21... Kd8 {[%clk 0:02:04.6]} 22. Ne2
{[%clk 0:01:24.8]} 22... Bb5 {[%clk 0:02:01.5]} 23. Nc3 {[%clk 0:01:23.8]} 23...
Bc6 {[%clk 0:02:01.7]} 24. Rd1 {[%clk 0:01:23.9]} 24... Kc7 {[%clk 0:02:00.8]}
25. b4 {[%clk 0:01:23.4]} 25... Bf6 {[%clk 0:01:59.3]} 26. Kc2 {[%clk
0:01:23.9]} 26... Be5 {[%clk 0:01:58.6]} 27. Kb3 {[%clk 0:01:21.9]} 27... h6
{[%clk 0:01:55.2]} 28. h3 {[%clk 0:01:18.9]} 28... Bd7 {[%clk 0:01:51.7]} 29.
Rc1 {[%clk 0:01:16.7]} 29... Kd8 {[%clk 0:01:49.4]} 30. a4 {[%clk 0:01:15.6]}
30... b6 {[%clk 0:01:47.2]} 31. a5 {[%clk 0:01:12]} 31... b5 {[%clk 0:01:44.1]}
32. Ne2 {[%clk 0:01:08.5]} 32... g5 {[%clk 0:01:42.1]} 33. g3 {[%clk 0:01:07.2]}
33... Bg7 {[%clk 0:01:40.1]} 34. f4 {[%clk 0:01:04.1]} 34... f5 {[%clk
0:01:26.1]} 35. exf5 {[%clk 0:01:01.8]} 35... exf5 {[%clk 0:01:27]} 36. Kc2
{[%clk 0:00:54.6]} 36... Be6 {[%clk 0:01:24.1]} 37. Kd2 {[%clk 0:00:54.2]} 37...
Kd7 {[%clk 0:01:22.4]} 38. h4 {[%clk 0:00:47.7]} 38... gxh4 {[%clk 0:01:20.4]}
39. gxh4 {[%clk 0:00:47.5]} 39... Bf6 {[%clk 0:01:20.6]} 40. h5 {[%clk
0:00:47.2]} 40... Bf7 {[%clk 0:01:19.6]} 41. Ng3 {[%clk 0:00:44.3]} 41... Be6
{[%clk 0:01:12.9]} 42. Rg1 {[%clk 0:00:40.1]} 42... Bd4 {[%clk 0:01:10.7]} 43.
Re1 {[%clk 0:00:36.1]} 43... Bf6 {[%clk 0:01:08.5]} 44. Ne2 {[%clk 0:00:35]}
44... Bf7 {[%clk 0:01:07.3]} 45. Rg1 {[%clk 0:00:28.8]} 45... Bxh5 {[%clk
0:01:04.3]} 46. Rh1 {[%clk 0:00:29.2]} 46... Bxe2 {[%clk 0:00:51.7]} 47. Rxh6
{[%clk 0:00:29.3]} 47... Bd4 {[%clk 0:00:43.6]} 48. Kxe2 {[%clk 0:00:24.5]}
48... Bc3 {[%clk 0:00:43.3]} 49. Rh7+ {[%clk 0:00:20.5]} 49... Kc8 {[%clk
0:00:32.3]} 50. Ra7 {[%clk 0:00:20.7]} 50... Bxb4 {[%clk 0:00:31]} 51. Rxa6
{[%clk 0:00:21.2]} 51... Kb7 {[%clk 0:00:30.6]} 52. Rb6+ {[%clk 0:00:21.5]}
52... Kc7 {[%clk 0:00:31.1]} 53. Rxb5 {[%clk 0:00:22.1]} 53... Ba3 {[%clk
0:00:29.1]} 54. Rxf5 {[%clk 0:00:22.3]} 54... Kd7 {[%clk 0:00:26.7]} 55. Kd3
{[%clk 0:00:22.7]} 55... Ke6 {[%clk 0:00:24.9]} 56. Rb5 {[%clk 0:00:23]} 56...
Kd7 {[%clk 0:00:23.5]} 57. f5 {[%clk 0:00:22.9]} 57... Kc6 {[%clk 0:00:23.6]}
58. Kc4 {[%clk 0:00:23.1]} 58... Bc1 {[%clk 0:00:19.3]} 59. f6 {[%clk
0:00:23.5]} 59... Bh6 {[%clk 0:00:19.5]} 60. f7 {[%clk 0:00:23.4]} 60... Bf8
{[%clk 0:00:18.9]} 61. a6 {[%clk 0:00:23.2]} 61... d5+ {[%clk 0:00:17.3]} 62.
Rxd5 {[%clk 0:00:23.5]} 62... Kb6 {[%clk 0:00:17.7]} 63. Rd8 {[%clk 0:00:23.9]}
63... Bh6 {[%clk 0:00:18.1]} 64. f8=Q {[%clk 0:00:24.4]} 64... Bxf8 {[%clk
0:00:18.1]} 65. Rxf8 {[%clk 0:00:25.3]} 65... Kxa6 {[%clk 0:00:18.5]} 66. Rb8
{[%clk 0:00:25.9]} 66... Ka7 {[%clk 0:00:18.3]} 67. Rb5 {[%clk 0:00:26.1]} 67...
Ka6 {[%clk 0:00:19]} 68. Kc5 {[%clk 0:00:26.7]} 68... Ka7 {[%clk 0:00:19.5]} 69.
Rb6 {[%clk 0:00:26.4]} 69... Ka8 {[%clk 0:00:19.4]} 70. Kc6 {[%clk 0:00:27.1]}
70... Ka7 {[%clk 0:00:19.9]} 71. Kc7 {[%clk 0:00:27.6]} 71... Ka8 {[%clk
0:00:20]} 72. Ra6# {[%clk 0:00:28.2]} 1-0

[Event "Early-Titled-Tuesday-Blitz-February-27-2024"]
[Site "Chess.com"]
[Date "2024.02.27"]
[Round "5"]
[White "Supergiuly"]
[Black "PolandHussars"]
[Result "1-0"]
[WhiteElo "2334"]
[BlackElo "2556"]
[TimeControl "180+1"]
[EndTime "8:55:23 PST"]
[Termination "Supergiuly won on time"]

1. g3 {[%clk 0:03:00.9]} 1... d5 {[%clk 0:02:42]} 2. Bg2 {[%clk 0:03:01.8]} 2...
Nf6 {[%clk 0:02:39.2]} 3. d4 {[%clk 0:02:59.9]} 3... c6 {[%clk 0:02:37.1]} 4.
Nf3 {[%clk 0:03:00.1]} 4... Bf5 {[%clk 0:02:34.2]} 5. O-O {[%clk 0:03:01]} 5...
Nbd7 {[%clk 0:02:34.5]} 6. Bf4 {[%clk 0:03:00.3]} 6... Qb6 {[%clk 0:02:33]} 7.
b3 {[%clk 0:02:59]} 7... e6 {[%clk 0:02:32.1]} 8. Nbd2 {[%clk 0:02:58.1]} 8...
a5 {[%clk 0:02:29.7]} 9. c4 {[%clk 0:02:57.3]} 9... Bb4 {[%clk 0:02:22.9]} 10.
a3 {[%clk 0:02:48.8]} 10... Be7 {[%clk 0:02:17.2]} 11. Nh4 {[%clk 0:02:41.3]}
11... Bg6 {[%clk 0:01:57.2]} 12. Nxg6 {[%clk 0:02:40.6]} 12... hxg6 {[%clk
0:01:58.1]} 13. Qc2 {[%clk 0:02:38.8]} 13... Qxd4 {[%clk 0:01:55.4]} 14. Rad1
{[%clk 0:02:34.7]} 14... Qb6 {[%clk 0:01:51.7]} 15. Nf3 {[%clk 0:02:31.3]} 15...
O-O {[%clk 0:01:49.7]} 16. h4 {[%clk 0:02:13.6]} 16... Bxa3 {[%clk 0:01:48.1]}
17. Ne5 {[%clk 0:02:07.6]} 17... Nxe5 {[%clk 0:01:46.1]} 18. Bxe5 {[%clk
0:02:08.5]} 18... Be7 {[%clk 0:01:46]} 19. Bf3 {[%clk 0:02:06.7]} 19... Nd7
{[%clk 0:01:41.9]} 20. Bb2 {[%clk 0:01:59.3]} 20... Bf6 {[%clk 0:01:41.8]} 21.
Bc1 {[%clk 0:01:55.1]} 21... Ne5 {[%clk 0:01:38.3]} 22. Bg2 {[%clk 0:01:54.8]}
22... a4 {[%clk 0:01:38.6]} 23. bxa4 {[%clk 0:01:46.4]} 23... Nxc4 {[%clk
0:01:36.5]} 24. h5 {[%clk 0:01:46]} 24... gxh5 {[%clk 0:01:35.8]} 25. Bf3 {[%clk
0:01:42.6]} 25... g6 {[%clk 0:01:30]} 26. Kg2 {[%clk 0:01:36.8]} 26... Ne5
{[%clk 0:01:27.1]} 27. g4 {[%clk 0:01:34]} 27... hxg4 {[%clk 0:01:23.9]} 28. Rh1
{[%clk 0:01:29.7]} 28... gxf3+ {[%clk 0:01:23.9]} 29. exf3 {[%clk 0:01:30.6]}
29... Bg7 {[%clk 0:01:23.2]} 30. Bh6 {[%clk 0:01:23.4]} 30... f6 {[%clk
0:01:14.3]} 31. Bxg7 {[%clk 0:01:19.6]} 31... Kxg7 {[%clk 0:01:14.5]} 32. Rb1
{[%clk 0:01:10.2]} 32... Qa7 {[%clk 0:01:09.6]} 33. f4 {[%clk 0:01:05.7]} 33...
Ng4 {[%clk 0:01:08.7]} 34. Kg3 {[%clk 0:01:04.2]} 34... Rh8 {[%clk 0:01:05.7]}
35. Kxg4 {[%clk 0:01:01]} 35... Rxh1 {[%clk 0:01:03.9]} 36. Rxh1 {[%clk
0:01:01.9]} 36... Qxa4 {[%clk 0:01:02.6]} 37. Qc5 {[%clk 0:00:46.4]} 37... Qa3
{[%clk 0:00:55.6]} 38. Qb6 {[%clk 0:00:43.5]} 38... Qe7 {[%clk 0:00:54.5]} 39.
Kg3 {[%clk 0:00:22.8]} 39... c5 {[%clk 0:00:41.4]} 40. Re1 {[%clk 0:00:20.6]}
40... Re8 {[%clk 0:00:41.3]} 41. Kg2 {[%clk 0:00:17.6]} 41... c4 {[%clk
0:00:39.4]} 42. Qe3 {[%clk 0:00:15.6]} 42... Qd7 {[%clk 0:00:37.3]} 43. Rh1
{[%clk 0:00:15.4]} 43... Rh8 {[%clk 0:00:37.2]} 44. Rb1 {[%clk 0:00:14.5]} 44...
Qc6 {[%clk 0:00:34.2]} 45. Qa7 {[%clk 0:00:14.1]} 45... d4+ {[%clk 0:00:33.7]}
46. f3 {[%clk 0:00:14.1]} 46... c3 {[%clk 0:00:25.1]} 47. Rxb7+ {[%clk 0:00:14]}
47... Kh6 {[%clk 0:00:25.7]} 48. Rb1 {[%clk 0:00:13.2]} 48... Qd5 {[%clk
0:00:17]} 49. Rh1+ {[%clk 0:00:12.4]} 49... Qh5 {[%clk 0:00:17.2]} 50. Rxh5+
{[%clk 0:00:12.9]} 50... gxh5 {[%clk 0:00:17.7]} 51. Qxd4 {[%clk 0:00:13.4]}
51... Rg8+ {[%clk 0:00:16.1]} 52. Kf2 {[%clk 0:00:13.6]} 52... c2 {[%clk
0:00:17]} 53. Qxf6+ {[%clk 0:00:13.3]} 53... Rg6 {[%clk 0:00:17.1]} 54. Qf8+
{[%clk 0:00:13.1]} 54... Kh7 {[%clk 0:00:17.2]} 55. Qc8 {[%clk 0:00:13.2]} 55...
h4 {[%clk 0:00:16.9]} 56. Qxc2 {[%clk 0:00:13.1]} 56... h3 {[%clk 0:00:17.8]}
57. Qc1 {[%clk 0:00:13.5]} 57... Rg2+ {[%clk 0:00:17.5]} 58. Ke3 {[%clk
0:00:13.3]} 58... Kg6 {[%clk 0:00:17.9]} 59. Qh1 {[%clk 0:00:13.3]} 59... Ra2
{[%clk 0:00:18]} 60. Qxh3 {[%clk 0:00:13.2]} 60... Ra3+ {[%clk 0:00:18.9]} 61.
Ke4 {[%clk 0:00:13.6]} 61... Ra6 {[%clk 0:00:18.1]} 62. Ke5 {[%clk 0:00:13.5]}
62... Kf7 {[%clk 0:00:17.9]} 63. Qh5+ {[%clk 0:00:13.6]} 63... Ke7 {[%clk
0:00:17.9]} 64. Qh7+ {[%clk 0:00:13.8]} 64... Kd8 {[%clk 0:00:18.5]} 65. Kf6
{[%clk 0:00:14.1]} 65... e5+ {[%clk 0:00:18.2]} 66. Kxe5 {[%clk 0:00:14.4]}
66... Ra5+ {[%clk 0:00:18.1]} 67. Ke4 {[%clk 0:00:14.8]} 67... Ra7 {[%clk
0:00:19]} 68. Qxa7 {[%clk 0:00:14]} 1-0

[Event "Early-Titled-Tuesday-Blitz-February-27-2024"]
[Site "Chess.com"]
[Date "2024.02.27"]
[Round "5"]
[White "sergoy"]
[Black "AlexTruskavetsky"]
[Result "1/2-1/2"]
[WhiteElo "3057"]
[BlackElo "2745"]
[TimeControl "180+1"]
[EndTime "8:55:25 PST"]
[Termination "Game drawn by repetition"]

1. d4 {[%clk 0:03:00.9]} 1... Nf6 {[%clk 0:02:57.5]} 2. c4 {[%clk 0:03:01.5]}
2... e6 {[%clk 0:02:57.6]} 3. Nf3 {[%clk 0:03:01.6]} 3... d5 {[%clk 0:02:57.2]}
4. Nc3 {[%clk 0:03:02]} 4... c6 {[%clk 0:02:56.9]} 5. e3 {[%clk 0:03:01.8]} 5...
Bd6 {[%clk 0:02:57]} 6. Qc2 {[%clk 0:03:01.9]} 6... O-O {[%clk 0:02:57.3]} 7.
Bd3 {[%clk 0:03:02.3]} 7... Nbd7 {[%clk 0:02:56.4]} 8. O-O {[%clk 0:03:01.9]}
8... Qc7 {[%clk 0:02:52]} 9. e4 {[%clk 0:03:00.8]} 9... dxe4 {[%clk 0:02:52.3]}
10. Nxe4 {[%clk 0:03:00.8]} 10... Nxe4 {[%clk 0:02:53.2]} 11. Bxe4 {[%clk
0:03:01.4]} 11... Nf6 {[%clk 0:02:53.9]} 12. c5 {[%clk 0:02:58.4]} 12... Be7
{[%clk 0:02:48.1]} 13. Bd3 {[%clk 0:02:52.7]} 13... h6 {[%clk 0:02:47.4]} 14.
Rb1 {[%clk 0:02:46.4]} 14... Nd5 {[%clk 0:02:35.2]} 15. a3 {[%clk 0:02:43.3]}
15... a5 {[%clk 0:02:34.5]} 16. Ne5 {[%clk 0:02:14.1]} 16... Bf6 {[%clk
0:02:22.5]} 17. Re1 {[%clk 0:02:09.2]} 17... Rd8 {[%clk 0:02:14.3]} 18. Bd2
{[%clk 0:01:55.3]} 18... Bd7 {[%clk 0:02:03.3]} 19. Bh7+ {[%clk 0:01:50.5]}
19... Kf8 {[%clk 0:02:02.2]} 20. Bd3 {[%clk 0:01:33.2]} 20... b6 {[%clk
0:01:57.5]} 21. Re4 {[%clk 0:01:26.2]} 21... bxc5 {[%clk 0:01:46.6]} 22. Qxc5+
{[%clk 0:01:26.1]} 22... Be7 {[%clk 0:01:46.9]} 23. Qc2 {[%clk 0:01:25.7]} 23...
c5 {[%clk 0:01:47.1]} 24. Rc1 {[%clk 0:01:09.9]} 24... Rac8 {[%clk 0:01:42]} 25.
Qd1 {[%clk 0:01:10.2]} 25... Nf6 {[%clk 0:01:33.4]} 26. Rf4 {[%clk 0:01:08.4]}
26... Qb7 {[%clk 0:01:27.3]} 27. Bxa5 {[%clk 0:01:05]} 27... Re8 {[%clk
0:01:24.3]} 28. Bc3 {[%clk 0:00:59.2]} 28... cxd4 {[%clk 0:01:22.2]} 29. Rxd4
{[%clk 0:00:59.4]} 29... Bb5 {[%clk 0:01:07.3]} 30. Qe2 {[%clk 0:00:41.6]} 30...
Bxd3 {[%clk 0:01:07.3]} 31. Rxd3 {[%clk 0:00:42.5]} 31... Red8 {[%clk
0:01:04.5]} 32. Rcd1 {[%clk 0:00:42.2]} 32... Rxd3 {[%clk 0:01:04]} 33. Rxd3
{[%clk 0:00:41.2]} 33... Nd5 {[%clk 0:01:01.9]} 34. Qe4 {[%clk 0:00:21.8]} 34...
Bf6 {[%clk 0:00:50.3]} 35. h3 {[%clk 0:00:22.3]} 35... Qc7 {[%clk 0:00:40.8]}
36. Bd4 {[%clk 0:00:17.5]} 36... Kg8 {[%clk 0:00:38.7]} 37. Rd1 {[%clk
0:00:15.2]} 37... h5 {[%clk 0:00:23.5]} 38. Nf3 {[%clk 0:00:15.4]} 38... Bxd4
{[%clk 0:00:22.7]} 39. Qxd4 {[%clk 0:00:16.3]} 39... Nf6 {[%clk 0:00:22.2]} 40.
b4 {[%clk 0:00:14.5]} 40... Ra8 {[%clk 0:00:21.8]} 41. Ra1 {[%clk 0:00:14.2]}
41... Qc6 {[%clk 0:00:20.6]} 42. Ne5 {[%clk 0:00:11.6]} 42... Qb5 {[%clk
0:00:21.1]} 43. Qc5 {[%clk 0:00:09.6]} 43... Qe2 {[%clk 0:00:15.1]} 44. Qe3
{[%clk 0:00:07.1]} 44... Qb5 {[%clk 0:00:14.7]} 45. Qc5 {[%clk 0:00:06.4]} 45...
Qe2 {[%clk 0:00:14.9]} 46. Nf3 {[%clk 0:00:07.1]} 46... Nd5 {[%clk 0:00:12.9]}
47. Qd4 {[%clk 0:00:06.4]} 47... Qb5 {[%clk 0:00:11.9]} 48. Qc5 {[%clk
0:00:06.5]} 48... Qd3 {[%clk 0:00:08.6]} 49. b5 {[%clk 0:00:06.5]} 49... Ra5
{[%clk 0:00:08]} 50. a4 {[%clk 0:00:05.1]} 50... Rxa4 {[%clk 0:00:08.6]} 51.
Rxa4 {[%clk 0:00:04.6]} 51... Qd1+ {[%clk 0:00:08.8]} 52. Kh2 {[%clk 0:00:05.3]}
52... Qxa4 {[%clk 0:00:09.7]} 53. b6 {[%clk 0:00:04.7]} 53... Qf4+ {[%clk
0:00:10]} 54. Kg1 {[%clk 0:00:04.6]} 54... Qb8 {[%clk 0:00:05.9]} 55. Ng5 {[%clk
0:00:03.8]} 55... Nxb6 {[%clk 0:00:04.3]} 56. Qb4 {[%clk 0:00:04.1]} 56... Qc7
{[%clk 0:00:04.4]} 57. Qb1 {[%clk 0:00:04.2]} 57... Nd5 {[%clk 0:00:04.5]} 58.
Qh7+ {[%clk 0:00:04.4]} 58... Kf8 {[%clk 0:00:05.2]} 59. Qh8+ {[%clk 0:00:05]}
59... Ke7 {[%clk 0:00:06.1]} 60. Qxg7 {[%clk 0:00:05.1]} 60... Qc1+ {[%clk
0:00:06.8]} 61. Kh2 {[%clk 0:00:05.3]} 61... Qf4+ {[%clk 0:00:07.5]} 62. Kg1
{[%clk 0:00:05.9]} 62... Qc1+ {[%clk 0:00:07.9]} 63. Kh2 {[%clk 0:00:06.4]}
63... Qf4+ {[%clk 0:00:08.5]} 64. Kh1 {[%clk 0:00:06.9]} 64... Qc1+ {[%clk
0:00:08.8]} 65. Kh2 {[%clk 0:00:07.4]} 1/2-1/2

[Event "Early-Titled-Tuesday-Blitz-February-27-2024"]
[Site "Chess.com"]
[Date "2024.02.27"]
[Round "5"]
[White "romulocardoso"]
[Black "Logman74"]
[Result "1-0"]
[WhiteElo "2343"]
[BlackElo "2496"]
[TimeControl "180+1"]
[EndTime "8:55:25 PST"]
[Termination "romulocardoso won on time"]

1. e4 {[%clk 0:03:00.9]} 1... c5 {[%clk 0:02:57.4]} 2. Nf3 {[%clk 0:03:00.2]}
2... e6 {[%clk 0:02:57.3]} 3. d4 {[%clk 0:03:00.2]} 3... cxd4 {[%clk 0:02:57.7]}
4. Nxd4 {[%clk 0:03:00.2]} 4... a6 {[%clk 0:02:57.8]} 5. Bd3 {[%clk 0:02:59.5]}
5... Nc6 {[%clk 0:02:53.8]} 6. Nxc6 {[%clk 0:02:59.3]} 6... bxc6 {[%clk
0:02:52.7]} 7. O-O {[%clk 0:03:00]} 7... d5 {[%clk 0:02:51.5]} 8. Re1 {[%clk
0:02:59]} 8... Nf6 {[%clk 0:02:50.9]} 9. Bg5 {[%clk 0:02:58.2]} 9... Be7 {[%clk
0:02:49.5]} 10. e5 {[%clk 0:02:57.7]} 10... Nd7 {[%clk 0:02:49.1]} 11. Bxe7
{[%clk 0:02:51.8]} 11... Qxe7 {[%clk 0:02:49.6]} 12. Nd2 {[%clk 0:02:52.2]}
12... O-O {[%clk 0:02:48.1]} 13. c3 {[%clk 0:02:52.5]} 13... c5 {[%clk
0:02:47.8]} 14. f4 {[%clk 0:02:50.4]} 14... Bb7 {[%clk 0:02:48]} 15. Nf3 {[%clk
0:02:49.2]} 15... g6 {[%clk 0:02:41.5]} 16. b3 {[%clk 0:02:30.5]} 16... Rfd8
{[%clk 0:02:34.7]} 17. Qe2 {[%clk 0:02:30.2]} 17... d4 {[%clk 0:02:32.9]} 18.
cxd4 {[%clk 0:02:28.7]} 18... cxd4 {[%clk 0:02:18.8]} 19. Ng5 {[%clk 0:02:14.4]}
19... Nc5 {[%clk 0:02:11.7]} 20. b4 {[%clk 0:01:58.5]} 20... Nxd3 {[%clk
0:02:09.7]} 21. Qxd3 {[%clk 0:01:59.4]} 21... Qxb4 {[%clk 0:02:07.8]} 22. Qh3
{[%clk 0:01:59.8]} 22... h5 {[%clk 0:02:05]} 23. Nxe6 {[%clk 0:01:54.3]} 23...
fxe6 {[%clk 0:01:29.4]} 24. Qxe6+ {[%clk 0:01:54.2]} 24... Kg7 {[%clk
0:01:28.5]} 25. Qf6+ {[%clk 0:01:54.6]} 25... Kh7 {[%clk 0:01:28.5]} 26. f5
{[%clk 0:01:39.7]} 26... Qf8 {[%clk 0:01:14.3]} 27. fxg6+ {[%clk 0:01:38.8]}
27... Kh6 {[%clk 0:01:02]} 28. Qb6 {[%clk 0:01:29.5]} 28... Rab8 {[%clk
0:00:43.9]} 29. Rf1 {[%clk 0:01:28.6]} 29... Qg7 {[%clk 0:00:44.3]} 30. Rf7
{[%clk 0:01:28]} 30... Qxe5 {[%clk 0:00:38.3]} 31. g7+ {[%clk 0:00:42.1]} 31...
Rd6 {[%clk 0:00:35.3]} 32. Qxb7 {[%clk 0:00:28.2]} 32... Rxb7 {[%clk 0:00:34.2]}
33. g8=Q {[%clk 0:00:27.5]} 33... Rxf7 {[%clk 0:00:23.5]} 34. Qxf7 {[%clk
0:00:27.9]} 34... Rg6 {[%clk 0:00:17.9]} 35. Qf8+ {[%clk 0:00:19.1]} 35... Kh7
{[%clk 0:00:14.9]} 36. Qf7+ {[%clk 0:00:19.4]} 36... Rg7 {[%clk 0:00:14.4]} 37.
Qf3 {[%clk 0:00:19.5]} 37... Qg5 {[%clk 0:00:07.4]} 38. Rd1 {[%clk 0:00:17.9]}
38... Rd7 {[%clk 0:00:07.9]} 39. Qd3+ {[%clk 0:00:16]} 39... Qg6 {[%clk
0:00:08.2]} 40. Qf3 {[%clk 0:00:11.5]} 40... d3 {[%clk 0:00:07.9]} 41. Rd2
{[%clk 0:00:08.5]} 41... Qb6+ {[%clk 0:00:06.1]} 42. Qf2 {[%clk 0:00:06.7]}
42... Qb1+ {[%clk 0:00:05.5]} 43. Qf1 {[%clk 0:00:07.2]} 43... Qb6+ {[%clk
0:00:05.5]} 44. Qf2 {[%clk 0:00:07]} 44... Qd4 {[%clk 0:00:05.3]} 45. Qxd4
{[%clk 0:00:05]} 45... Rxd4 {[%clk 0:00:04.8]} 46. Kf2 {[%clk 0:00:05.9]} 46...
Kg6 {[%clk 0:00:04.6]} 47. Ke3 {[%clk 0:00:06.1]} 47... Ra4 {[%clk 0:00:05.3]}
48. Kxd3 {[%clk 0:00:06.1]} 48... Kf5 {[%clk 0:00:05.8]} 49. Kc3 {[%clk
0:00:06.4]} 49... Kf4 {[%clk 0:00:06]} 50. Kb3 {[%clk 0:00:06.7]} 50... Re4
{[%clk 0:00:04.6]} 51. Kc3 {[%clk 0:00:06.8]} 51... Ke3 {[%clk 0:00:05.2]} 52.
Rd3+ {[%clk 0:00:06.4]} 52... Kf2 {[%clk 0:00:05.8]} 53. Rg3 {[%clk 0:00:06.7]}
53... h4 {[%clk 0:00:04.3]} 54. Rg8 {[%clk 0:00:06.5]} 54... Ra4 {[%clk
0:00:05]} 55. Kb3 {[%clk 0:00:06.9]} 55... Ra5 {[%clk 0:00:05.6]} 56. a4 {[%clk
0:00:07.1]} 56... Re5 {[%clk 0:00:04.7]} 57. Rg4 {[%clk 0:00:07]} 1-0

[Event "Early-Titled-Tuesday-Blitz-February-27-2024"]
[Site "Chess.com"]
[Date "2024.02.27"]
[Round "5"]
[White "blitzking1729"]
[Black "ChessLover0108"]
[Result "1-0"]
[WhiteElo "2721"]
[BlackElo "2956"]
[TimeControl "180+1"]
[EndTime "8:55:26 PST"]
[Termination "blitzking1729 won by resignation"]

1. c4 {[%clk 0:03:00.1]} 1... g6 {[%clk 0:02:58.8]} 2. Nc3 {[%clk 0:02:59.7]}
2... Bg7 {[%clk 0:02:59.5]} 3. g3 {[%clk 0:02:59.2]} 3... c5 {[%clk 0:03:00.1]}
4. Bg2 {[%clk 0:02:59.7]} 4... Nc6 {[%clk 0:03:00.8]} 5. e3 {[%clk 0:02:59.1]}
5... b6 {[%clk 0:02:50.8]} 6. Nge2 {[%clk 0:02:53.9]} 6... Bb7 {[%clk
0:02:50.9]} 7. O-O {[%clk 0:02:54.2]} 7... Nf6 {[%clk 0:02:49.3]} 8. d4 {[%clk
0:02:53.4]} 8... O-O {[%clk 0:02:44.5]} 9. d5 {[%clk 0:02:49.5]} 9... Na5 {[%clk
0:02:42]} 10. Qd3 {[%clk 0:02:48.9]} 10... d6 {[%clk 0:02:40.4]} 11. b3 {[%clk
0:02:47.1]} 11... b5 {[%clk 0:02:18.3]} 12. cxb5 {[%clk 0:02:11.3]} 12... a6
{[%clk 0:02:18.3]} 13. Rb1 {[%clk 0:01:59.9]} 13... axb5 {[%clk 0:02:09.3]} 14.
Nxb5 {[%clk 0:01:59.7]} 14... Ba6 {[%clk 0:02:07.7]} 15. a4 {[%clk 0:01:58.4]}
15... Qb6 {[%clk 0:02:01.2]} 16. Nec3 {[%clk 0:01:47.4]} 16... Nd7 {[%clk
0:01:58.7]} 17. Rd1 {[%clk 0:01:40.6]} 17... Rfc8 {[%clk 0:01:53.9]} 18. Qc2
{[%clk 0:01:30.9]} 18... c4 {[%clk 0:01:27.8]} 19. bxc4 {[%clk 0:01:26.8]} 19...
Nxc4 {[%clk 0:01:28.7]} 20. Nd4 {[%clk 0:01:21.4]} 20... Bxd4 {[%clk 0:00:43.3]}
21. Rxb6 {[%clk 0:01:15.4]} 21... Bxb6 {[%clk 0:00:44.2]} 22. Qb3 {[%clk
0:00:52.6]} 22... Nc5 {[%clk 0:00:30.8]} 23. Qa2 {[%clk 0:00:45.2]} 23... Ba5
{[%clk 0:00:31.3]} 24. Nb5 {[%clk 0:00:42.1]} 24... Nb6 {[%clk 0:00:07.8]} 25.
Nd4 {[%clk 0:00:39.5]} 25... Bc4 {[%clk 0:00:06.2]} 26. Qb1 {[%clk 0:00:33]}
26... Bxd5 {[%clk 0:00:06.8]} 27. Bxd5 {[%clk 0:00:26.5]} 27... Nxd5 {[%clk
0:00:07.7]} 28. Bd2 {[%clk 0:00:18.1]} 28... Bxd2 {[%clk 0:00:06.4]} 29. Rxd2
{[%clk 0:00:19]} 29... Nxa4 {[%clk 0:00:06.5]} 30. Qb7 {[%clk 0:00:15.3]} 30...
Nac3 {[%clk 0:00:04.2]} 31. Nc6 {[%clk 0:00:10.8]} 31... e6 {[%clk 0:00:04.3]}
32. e4 {[%clk 0:00:09.4]} 32... Nxe4 {[%clk 0:00:01.7]} 33. Rxd5 {[%clk
0:00:09.7]} 33... exd5 {[%clk 0:00:01.2]} 34. Ne7+ {[%clk 0:00:10.1]} 34... Kg7
{[%clk 0:00:02.1]} 35. Nxc8 {[%clk 0:00:10.5]} 35... Ra1+ {[%clk 0:00:03]} 36.
Kg2 {[%clk 0:00:10.9]} 36... Ra2 {[%clk 0:00:03.9]} 37. Qxd5 {[%clk 0:00:08.5]}
37... Rxf2+ {[%clk 0:00:04.3]} 38. Kg1 {[%clk 0:00:06.4]} 38... Re2 {[%clk
0:00:04.9]} 39. Kf1 {[%clk 0:00:06.4]} 39... Rf2+ {[%clk 0:00:03.5]} 40. Ke1
{[%clk 0:00:06.2]} 40... Re2+ {[%clk 0:00:04.1]} 41. Kf1 {[%clk 0:00:05.1]}
41... Rf2+ {[%clk 0:00:02.3]} 42. Kg1 {[%clk 0:00:05.7]} 42... Re2 {[%clk
0:00:03]} 43. Qd4+ {[%clk 0:00:05.7]} 43... Kh6 {[%clk 0:00:01.5]} 44. Kf1
{[%clk 0:00:05.1]} 44... Rf2+ {[%clk 0:00:01.5]} 45. Ke1 {[%clk 0:00:05.6]}
45... Rf5 {[%clk 0:00:02.1]} 46. Qxe4 {[%clk 0:00:04.5]} 46... Re5 {[%clk
0:00:02.7]} 47. Nxd6 {[%clk 0:00:05]} 47... Rxe4+ {[%clk 0:00:03.4]} 48. Nxe4
{[%clk 0:00:05.8]} 48... f5 {[%clk 0:00:04.3]} 49. Nd6 {[%clk 0:00:04.3]} 49...
Kg5 {[%clk 0:00:05.2]} 50. Kf2 {[%clk 0:00:02.6]} 50... f4 {[%clk 0:00:05.9]}
51. Kf3 {[%clk 0:00:02.8]} 51... fxg3 {[%clk 0:00:06.2]} 52. Kxg3 {[%clk
0:00:03.4]} 52... Kh5 {[%clk 0:00:04.4]} 53. Nf7 {[%clk 0:00:02.7]} 53... g5
{[%clk 0:00:04.7]} 54. Ne5 {[%clk 0:00:02]} 54... h6 {[%clk 0:00:02.3]} 55. h3
{[%clk 0:00:02.5]} 55... g4 {[%clk 0:00:01.9]} 56. hxg4+ {[%clk 0:00:02.9]}
56... Kg5 {[%clk 0:00:02.8]} 57. Nf3+ {[%clk 0:00:03.5]} 57... Kg6 {[%clk
0:00:03.7]} 58. Kh4 {[%clk 0:00:04.2]} 58... Kf6 {[%clk 0:00:04.1]} 59. Kh5
{[%clk 0:00:04.4]} 59... Kg7 {[%clk 0:00:04.9]} 60. Nh4 {[%clk 0:00:05.1]} 60...
Kf6 {[%clk 0:00:04.5]} 61. Nf5 {[%clk 0:00:05.8]} 61... Ke5 {[%clk 0:00:05.1]}
62. Nxh6 {[%clk 0:00:05.6]} 1-0